bitfinex-derivatives/quotes_ETHF0:USTF0_20250428
["timestamp","ask_amount","ask_price","bid_price","bid_amount"]
[1745825731976,2.68108,1809.4,1809.3,4.8642]
[1745825735377,1.10498,1809.4,1809.3,5.96924]
[1745825735578,5.07696,1809.5,1809.3,5.96924]
[1745825735777,5.07696,1809.5,1809.4,1.5911]
[1745825735983,5.07696,1809.5,1809.4,2.69608]
[1745825736384,3.972,1809.5,1809.4,2.69608]
[1745825736587,3.935,1809.8,1809.4,8.2402]
[1745825736879,1.1048,1809.7,1809.6,3.2078]
[1745825737083,1.10486,1809.6,1809.5,6.50628]
[1745825737283,1.10486,1809.6,1809.5,9.71408]
[1745825737484,1.10485,1809.7,1809.6,1.10486]
[1745825737686,1.10485,1809.7,1809.6,1.5994]
[1745825737880,1.10486,1809.6,1809.5,7.0098]
[1745825738081,1.10486,1809.6,1809.5,4.31272]
[1745825738280,1.10486,1809.6,1809.5,5.91212]
[1745825739485,1.10484,1809.7,1809.6,1.10485]
[1745825739686,1.10484,1809.7,1809.6,2.70425]
[1745825739885,5.6557,1809.8,1809.6,2.70425]
[1745825740083,3.935,1809.8,1809.7,2.6833]
[1745825741693,3.935,1809.8,1809.7,1.5785]
[1745825741895,6.68484,1809.8,1809.7,1.5785]
[1745825742490,6.68484,1809.8,1809.6,1.10481]
[1745825742690,1.6451,1809.7,1809.6,1.10481]
[1745825742893,1.6451,1809.7,1809.6,2.82691]
[1745825743893,1.6451,1809.7,1809.6,6.03471]
[1745825744587,1.6451,1809.7,1809.6,2.82691]
[1745825745292,1.6451,1809.7,1809.6,6.03471]
[1745825746288,1.6451,1809.7,1809.6,2.82691]
[1745825746688,5.03975,1809.8,1809.7,1.1048]
[1745825746883,3.935,1809.8,1809.7,1.1048]
[1745825747391,6.69664,1809.8,1809.7,1.1048]
[1745825747795,6.69664,1809.8,1809.4,4.0314]
[1745825747796,1.1048,1809.7,1809.4,4.0314]
[1745825747999,1.6569,1809.7,1809.6,1.10486]
[1745825749297,3.935,1809.8,1809.7,1.1048]
[1745825749689,5.03974,1809.8,1809.7,1.1048]
[1745825749997,6.67254,1809.8,1809.7,1.1048]
[1745825750904,6.67254,1809.8,1809.6,1.5877]
[1745825751193,1.6328,1809.7,1809.6,2.69256]
[1745825751998,2.7376,1809.7,1809.6,2.69256]
[1745825752497,1.6328,1809.7,1809.6,2.69256]
[1745825752999,2.7376,1809.7,1809.6,1.5877]
[1745825753200,2.7376,1809.7,1809.6,2.69256]
[1745825753502,2.7376,1809.7,1809.6,1.5877]
[1745825754098,1.1048,1809.7,1809.6,1.5877]
[1745825754694,2.8323,1809.7,1809.6,1.5877]
[1745825758297,1.7275,1809.7,1809.6,1.10486]
[1745825758498,2.83233,1809.7,1809.6,1.10486]
[1745825760896,1.7275,1809.7,1809.6,1.10486]
[1745825763602,1.7275,1809.7,1809.6,4.31266]
[1745825763997,3.935,1809.8,1809.7,1.1048]
[1745825764205,5.5614,1809.8,1809.7,1.1048]
[1745825764501,5.5614,1809.8,1809.7,2.7758]
[1745825765202,5.5614,1809.8,1809.7,6.5778]
[1745825765496,3.935,1809.8,1809.7,6.5778]
[1745825766105,2.4474,1810.0,1809.9,1.10467]
[1745825766400,2.4474,1810.0,1809.9,4.31247]
[1745825767100,2.4474,1810.0,1809.9,8.11447]
[1745825768700,1.6264,1810.0,1809.9,8.11447]
[1745825769090,1.6264,1810.0,1809.9,9.81167]
[1745825769402,4.693,1810.1,1810.0,1.10461]
[1745825769702,6.3255,1810.1,1810.0,1.10461]
[1745825770804,1.5742,1810.4,1810.3,1.10443]
[1745825771000,5.4237,1810.5,1810.4,1.10437]
[1745825771194,5.51416672,1810.5,1810.4,1.10437]
[1745825771399,6.52801,1810.5,1810.4,1.10437]
[1745825771700,5.4237,1810.5,1810.4,1.10437]
[1745825773197,5.4227,1810.5,1810.4,1.10437]
[1745825774003,3.842,1810.5,1810.4,1.10437]
[1745825774306,3.842,1810.5,1810.4,6.58087]
[1745825776007,0.8687,1810.6,1810.5,1.10431]
[1745825776206,0.8687,1810.6,1810.5,4.90631]
[1745825778507,1.712,1810.6,1810.5,4.90631]
[1745825778710,2.81625,1810.6,1810.5,4.90631]
[1745825779201,2.81625,1810.6,1810.3,41.90441]
[1745825779202,1.10437,1810.5,1810.3,41.90441]
[1745825779708,1.10447,1810.3,1810.1,1.10451]
[1745825780010,2.77489,1810.2,1810.1,41.90451]
[1745825780201,2.77489,1810.2,1810.1,40.8]
[1745825780908,2.8653675,1810.2,1810.1,40.8]
[1745825781096,2.77489,1810.2,1810.1,40.8]
[1745825781501,6.61689,1810.2,1810.1,40.8]
[1745825782112,6.70737469,1810.2,1810.1,40.8]
[1745825782410,6.70737469,1810.2,1809.8,1.10473]
[1745825782411,1.10469,1809.9,1809.8,1.10473]
[1745825782601,2.80781,1810.1,1809.9,1.10465]
[1745825782911,1.7032,1810.0,1809.9,41.90465]
[1745825783306,2.80781,1810.0,1809.9,41.90465]
[1745825783607,1.7032,1810.0,1809.9,41.90465]
[1745825784008,1.7032,1810.0,1809.9,40.8]
[1745825785611,1.7032,1810.0,1809.9,41.90467]
[1745825786512,1.7032,1810.0,1809.9,43.61107]
[1745825786906,1.6704,1810.2,1810.1,1.10455]
[1745825787105,3.772,1810.3,1810.2,1.10449]
[1745825787313,5.4401,1810.3,1810.2,4.31229]
[1745825787513,5.4401,1810.3,1810.2,3.2078]
[1745825787814,4.6311,1810.5,1810.4,1.10437]
[1745825788009,6.2992,1810.5,1810.4,1.10437]
[1745825788206,6.2992,1810.5,1810.4,4.90637]
[1745825788714,5.4401,1810.5,1810.4,4.90637]
[1745825788909,1.6681,1810.5,1810.4,8.11417]
[1745825789112,0.8066,1810.7,1810.6,1.10425]
[1745825789310,1.10425,1810.6,1810.5,1.10426]
[1745825789509,0.8066,1810.7,1810.5,1.10426]
[1745825789510,1.91084,1810.7,1810.5,1.10426]
[1745825790216,1.10425,1810.6,1810.5,1.10426]
[1745825790406,1.10425,1810.6,1810.4,5.98293]
[1745825790609,1.10442,1810.4,1810.2,5.12007]
[1745825790909,1.10443,1810.3,1810.2,5.12007]
[1745825791108,3.771,1810.5,1810.2,5.12007]
[1745825791308,1.10441,1810.4,1810.3,1.10443]
[1745825791709,1.10443,1810.3,1810.2,8.92205]
[1745825792713,1.96173,1810.3,1810.2,8.92205]
[1745825792912,1.96173,1810.3,1810.2,7.0098]
[1745825794113,0.8573,1810.3,1810.2,8.11429]
[1745825794503,0.8493,1810.4,1810.3,1.10443]
[1745825795208,0.8493,1810.4,1810.3,4.90643]
[1745825795707,0.8493,1810.4,1810.3,6.53853]
[1745825796715,4.87531,1810.5,1810.4,1.10437]
[1745825796716,3.771,1810.5,1810.4,1.10437]
[1745825796907,4.87531,1810.5,1810.4,2.73647]
[1745825797109,1.10437,1810.4,1810.3,0.8583]
[1745825797309,1.10443,1810.3,1810.2,4.8399]
[1745825797509,1.90813,1810.3,1810.2,3.2078]
[1745825798009,1.90813,1810.3,1810.2,4.31229]
[1745825798212,1.10455,1810.1,1810.0,2.5713]
[1745825798404,1.94233,1810.2,1810.0,3.67587]
[1745825798610,5.71333,1810.2,1810.0,3.67587]
[1745825799013,5.71333,1810.2,1810.0,2.5713]
[1745825799202,5.71333,1810.2,1810.1,1.10455]
[1745825799408,1.10455,1810.1,1810.0,3.67586]
[1745825800009,1.10461,1810.0,1809.9,45.11242]
[1745825800314,1.10461,1810.0,1809.9,46.82542]
[1745825800917,1.1046,1810.1,1810.0,1.10461]
[1745825801116,1.1046,1810.1,1810.0,4.90661]
[1745825801312,1.1046,1810.1,1810.0,3.802]
[1745825801512,2.7679,1810.1,1810.0,3.802]
[1745825801813,1.6633,1810.1,1810.0,3.802]
[1745825802112,2.76785,1810.1,1810.0,3.802]
[1745825803313,2.76785,1810.1,1810.0,1.10461]
[1745825803815,1.6633,1810.1,1810.0,1.10461]
[1745825804419,2.76785,1810.1,1810.0,1.10461]
[1745825805122,1.6633,1810.1,1810.0,1.10461]
[1745825805420,2.76785,1810.1,1810.0,1.10461]
[1745825805621,1.6633,1810.1,1810.0,1.10461]
[1745825805820,2.76785,1810.1,1810.0,1.10461]
[1745825807114,2.76785,1810.1,1809.9,46.75112]
[1745825807320,1.6102,1810.0,1809.9,46.75112]
[1745825808124,1.6102,1810.0,1809.9,50.55312]
[1745825808623,7.32354,1810.2,1810.1,1.10455]
[1745825809825,7.32354,1810.2,1810.0,2.68097]
[1745825809826,1.10455,1810.1,1810.0,2.68097]
[1745825811020,1.10461,1810.0,1809.9,44.0078]
[1745825811221,1.10461,1810.0,1809.9,3.2078]
[1745825811524,1.10474,1809.8,1809.7,3.2078]
[1745825812016,5.4749,1809.9,1809.7,4.31255]
[1745825812218,1.7029,1809.8,1809.7,4.31255]
[1745825812522,3.772,1809.9,1809.8,1.10474]
[1745825812712,3.772,1809.9,1809.8,3.68374]
[1745825813219,3.772,1809.9,1809.8,7.48574]
[1745825823129,3.772,1809.9,1809.8,5.75984]
[1745825823633,5.512,1809.9,1809.8,5.75984]
[1745825824827,5.512,1809.9,1809.8,7.37014]
[1745825828936,5.512,1809.9,1809.8,5.75984]
[1745825830639,5.512,1809.9,1809.8,4.90674]
[1745825831335,6.61667,1809.9,1809.8,3.802]
[1745825831838,14.9149693,1809.9,1809.8,3.802]
[1745825832230,1.10488,1809.6,1809.5,1.10491]
[1745825832440,4.84688,1809.6,1809.5,41.90491]
[1745825832741,3.742,1809.6,1809.5,41.90491]
[1745825832930,6.44956,1809.6,1809.5,41.90491]
[1745825833540,5.3447,1809.6,1809.5,41.90491]
[1745825833933,6.44956,1809.6,1809.5,41.90491]
[1745825834538,5.3447,1809.6,1809.5,41.90491]
[1745825835033,5.3447,1809.6,1809.3,1.10502]
[1745825835034,1.10496,1809.5,1809.3,1.10502]
[1745825835234,0.7899,1809.4,1809.2,4.31289]
[1745825835440,1.6874,1809.3,1809.2,3.2078]
[1745825835737,1.6874,1809.3,1809.2,4.3129]
[1745825836239,1.6874,1809.3,1809.2,8.1149]
[1745825837529,1.6874,1809.3,1809.2,9.7678]
[1745825838037,6.53544,1809.3,1809.2,3.802]
[1745825838238,5.4304,1809.3,1809.0,3.2078]
[1745825838540,2.4596,1809.2,1809.1,1.10516]
[1745825838740,2.4596,1809.2,1809.1,2.75806]
[1745825839842,3.5647,1809.2,1809.1,1.6529]
[1745825840642,1.10516,1809.1,1809.0,7.0098]
[1745825840940,2.73986,1809.1,1809.0,3.802]
[1745825841133,1.10528,1809.0,1808.8,8.11511]
[1745825841333,3.54128,1809.0,1808.8,8.11511]
[1745825841535,1.10529,1808.9,1808.8,8.11511]
[1745825841735,2.73999,1808.9,1808.8,8.11511]
[1745825842244,3.56659,1808.9,1808.8,8.11511]
[1745825842541,3.56659,1808.9,1808.8,8.11515]
[1745825843443,3.56659,1808.9,1808.8,7.0098]
[1745825843635,3.56659,1808.9,1808.8,3.802]
[1745825844338,6.77439,1808.9,1808.8,3.802]
[1745825844547,1.10565,1808.3,1808.2,3.2078]
[1745825845048,1.10565,1808.3,1808.1,2.75495]
[1745825845344,2.82084,1808.4,1808.2,8.11551]
[1745825845537,2.82084,1808.4,1808.3,1.10565]
[1745825845735,2.82084,1808.4,1808.2,8.11547]
[1745825845932,2.82084,1808.4,1808.3,1.10565]
[1745825846239,2.82084,1808.4,1808.3,3.802]
[1745825848245,1.10565,1808.3,1808.2,3.2078]
[1745825848444,2.82083,1808.4,1808.2,4.31351]
[1745825848644,1.10565,1808.3,1808.2,4.31351]
[1745825849146,1.10565,1808.3,1808.2,8.11551]
[1745825849543,2.82083,1808.4,1808.3,1.10565]
[1745825849738,2.82083,1808.4,1808.2,8.11547]
[1745825850140,1.7152,1808.4,1808.3,1.10565]
[1745825850344,1.7152,1808.4,1808.3,2.84355]
[1745825850641,4.79743,1808.7,1808.3,6.7379]
[1745825850846,3.692,1808.7,1808.6,1.10547]
[1745825851750,3.692,1808.7,1808.6,4.31327]
[1745825852251,0.7912,1809.1,1809.0,1.10522]
[1745825852451,3.693,1809.1,1809.0,1.10522]
[1745825852647,4.79816,1809.1,1809.0,1.10522]
[1745825853044,4.79816,1809.1,1809.0,2.74692]
[1745825853247,4.79816,1809.1,1809.0,6.54892]
[1745825853548,3.693,1809.1,1809.0,6.54892]
[1745825855946,4.79816,1809.1,1809.0,6.54892]
[1745825856145,4.79816,1809.1,1809.0,3.802]
[1745825856752,4.79816,1809.1,1809.0,4.90722]
[1745825856944,3.693,1809.1,1809.0,4.90722]
[1745825857961,5.66976,1809.1,1809.0,3.802]
[1745825858652,5.66976,1809.1,1809.0,4.90722]
[1745825858849,4.5646,1809.1,1809.0,4.90722]
[1745825859249,4.5646,1809.1,1809.0,1.10522]
[1745825859860,4.5646,1809.1,1808.9,1.6587]
[1745825859861,1.1053,1808.9,1808.8,1.10533]
[1745825860056,5.59557,1809.0,1808.8,1.10533]
[1745825860252,1.10529,1808.9,1808.8,1.10533]
[1745825860453,5.59558,1809.0,1808.8,1.10533]
[1745825860887,5.59558,1809.0,1808.9,1.10529]
[1745825861168,4.4903,1809.0,1808.9,1.10529]
[1745825861572,7.22912,1809.0,1808.9,1.10529]
[1745825861869,7.22912,1809.0,1808.8,1.10531]
[1745825862064,1.6336,1808.9,1808.8,1.10531]
[1745825863069,2.73889,1808.9,1808.8,1.10531]
[1745825863272,2.73889,1808.9,1808.8,4.90731]
[1745825863867,1.6336,1808.9,1808.8,4.90731]
[1745825864171,1.6336,1808.9,1808.8,6.57991]
[1745825864956,2.73889,1808.9,1808.8,3.802]
[1745825865165,2.73889,1808.9,1808.7,3.2078]
[1745825865166,1.10535,1808.8,1808.7,4.3132]
[1745825865460,3.55645,1808.8,1808.7,3.2078]
[1745825865855,2.4511,1808.8,1808.7,4.31321]
[1745825866858,1.6369,1808.8,1808.7,4.31321]
[1745825867059,6.42328,1809.0,1808.9,1.10529]
[1745825867457,1.10529,1808.9,1808.8,2.68619]
[1745825867758,6.42327,1809.0,1808.9,1.10529]
[1745825867950,6.42327,1809.0,1808.8,1.5809]
[1745825867951,1.10529,1808.9,1808.8,2.6862]
[1745825868357,2.84589,1808.9,1808.8,2.6862]
[1745825868557,1.7406,1808.9,1808.8,2.6862]
[1745825868961,2.84589,1808.9,1808.8,1.5809]
[1745825870459,1.10535,1808.8,1808.7,5.12276]
[1745825870658,2.70435,1808.8,1808.7,4.0174]
[1745825870966,2.70435,1808.8,1808.7,5.12281]
[1745825871159,2.70435,1808.8,1808.7,7.8194]
[1745825871359,2.70435,1808.8,1808.7,8.11521]
[1745825871556,2.70435,1808.8,1808.7,7.0098]
[1745825872266,2.70435,1808.8,1808.7,3.2078]
[1745825872968,2.70435,1808.8,1808.7,4.31321]
[1745825873168,2.70435,1808.8,1808.7,8.11521]
[1745825873461,2.70435,1808.8,1808.7,3.802]
[1745825874269,1.10553,1808.5,1808.4,3.2078]
[1745825874453,3.689,1808.5,1808.2,1.92731]
[1745825874659,1.10565,1808.3,1808.2,1.92731]
[1745825875164,2.74485,1808.3,1808.2,5.72931]
[1745825875364,2.74485,1808.3,1808.2,3.802]
[1745825875567,2.74485,1808.3,1808.2,4.90771]
[1745825876665,1.6392,1808.3,1808.2,4.90771]
[1745825876868,1.10565,1808.3,1808.2,5.4522]
[1745825877266,1.10565,1808.3,1808.2,6.55788]
[1745825877468,2.74545,1808.3,1808.2,6.55788]
[1745825878068,4.79458,1808.5,1808.3,1.10565]
[1745825878371,1.10559,1808.4,1808.3,3.58055]
[1745825878563,2.74539,1808.4,1808.3,3.58055]
[1745825878864,1.6398,1808.4,1808.3,3.58055]
[1745825879063,3.689,1808.5,1808.4,1.10559]
[1745825879264,4.79453,1808.5,1808.4,2.75579]
[1745825879963,4.79453,1808.5,1808.4,1.6502]
[1745825880171,4.79453,1808.5,1808.4,3.802]
[1745825880566,13.00233,1808.5,1808.4,3.802]
[1745825880768,13.09291012,1808.5,1808.4,3.802]
[1745825881063,8.09291012,1808.5,1808.4,3.802]
[1745825881367,1.10565,1808.3,1808.2,1.10568]
[1745825881970,1.10571,1808.2,1808.1,3.54706]
[1745825882163,1.10571,1808.2,1808.1,1.6122]
[1745825882362,1.715,1808.3,1808.2,1.10571]
[1745825882565,1.10571,1808.2,1808.1,1.6122]
[1745825882870,1.10571,1808.2,1807.9,4.8516]
[1745825882871,1.10584,1808.0,1807.9,0.795]
[1745825883469,2.73494,1808.0,1807.9,0.795]
[1745825884270,2.73494,1808.0,1807.9,4.597]
[1745825885168,2.73494,1808.0,1807.9,0.795]
[1745825887272,2.73494,1808.0,1807.9,4.597]
[1745825888169,2.73494,1808.0,1807.9,0.795]
[1745825888372,1.1059,1807.9,1807.8,42.4306]
[1745825888572,2.6918,1807.9,1807.8,42.4306]
[1745825888771,1.5859,1807.9,1807.8,43.53656]
[1745825889165,1.5859,1807.9,1807.8,47.33856]
[1745825889473,2.6918,1807.9,1807.8,47.33856]
[1745825889677,1.5859,1807.9,1807.8,47.33856]
[1745825889877,1.10586,1808.0,1807.9,1.1059]
[1745825890174,1.10586,1808.0,1807.9,4.9079]
[1745825890377,2.68966,1808.0,1807.9,5.4813]
[1745825890568,2.68966,1808.0,1807.9,6.5872]
[1745825891476,1.5838,1808.0,1807.9,6.5872]
[1745825892174,1.10584,1808.0,1807.9,5.4813]
[1745825892479,1.7163,1808.0,1807.9,6.58715]
[1745825892676,2.82214,1808.0,1807.9,6.58715]
[1745825893980,1.7163,1808.0,1807.9,6.58715]
[1745825894280,2.82214,1808.0,1807.9,6.58715]
[1745825895180,1.7163,1808.0,1807.9,6.58715]
[1745825895382,8.00256,1808.2,1808.1,1.10577]
[1745825895579,9.67236,1808.2,1808.1,1.10577]
[1745825896071,9.67236,1808.2,1808.1,1.6494]
[1745825896271,1.10577,1808.1,1808.0,0.8307]
[1745825896471,2.77557,1808.1,1808.0,1.10582]
[1745825896871,2.77559,1808.1,1807.9,2.75527]
[1745825897073,1.6698,1808.1,1808.0,1.10584]
[1745825897583,2.77557,1808.1,1808.0,1.6494]
[1745825897879,1.10584,1808.0,1807.9,3.802]
[1745825898079,3.47674,1808.0,1807.9,3.802]
[1745825898683,2.3709,1808.0,1807.9,4.90787]
[1745825900581,2.3709,1808.0,1807.9,6.50397]
[1745825904982,3.47674,1808.0,1807.9,6.50397]
[1745825905280,3.689,1808.2,1808.1,1.10577]
[1745825905483,5.3204,1808.2,1808.1,1.10577]
[1745825905681,6.42615,1808.2,1808.1,1.10577]
[1745825906183,1.10577,1808.1,1808.0,5.95449]
[1745825906885,6.42616,1808.2,1808.1,1.10577]
[1745825907087,3.66,1808.7,1808.6,1.10547]
[1745825907783,3.66,1808.7,1808.6,3.58437]
[1745825908279,6.44551,1808.7,1808.6,2.4789]
[1745825908479,1.10547,1808.6,1808.5,8.11529]
[1745825908677,2.78557,1808.6,1808.5,8.11529]
[1745825908878,1.6801,1808.6,1808.5,8.11529]
[1745825909280,1.6801,1808.6,1808.5,9.78959]
[1745825910680,3.66,1808.7,1808.6,1.10547]
[1745825910885,3.3421,1808.8,1808.7,1.10541]
[1745825911385,3.3421,1808.8,1808.7,4.90741]
[1745825913685,4.44745,1808.8,1808.7,4.90741]
[1745825914184,4.44745,1808.8,1808.7,1.10541]
[1745825915187,13.24949,1808.8,1808.6,1.10542]
[1745825915375,5.3882,1808.7,1808.6,1.10542]
[1745825915880,10.3882,1808.7,1808.6,1.10542]
[1745825916282,5.3882,1808.7,1808.6,1.10542]
[1745825917780,6.49361,1808.7,1808.6,1.10542]
[1745825917985,5.3882,1808.7,1808.5,3.2078]
[1745825918186,1.6786,1808.6,1808.5,4.31333]
[1745825918689,2.78407,1808.6,1808.5,4.31333]
[1745825918988,1.6786,1808.6,1808.5,4.31333]
[1745825919890,2.78407,1808.6,1808.5,3.2078]
[1745825920090,1.6786,1808.6,1808.5,4.31333]
[1745825920482,1.6786,1808.6,1808.5,1.10553]
[1745825920682,2.78407,1808.6,1808.5,1.10553]
[1745825922088,1.6786,1808.6,1808.5,1.10553]
[1745825922486,1.6786,1808.6,1808.3,3.2078]
[1745825922487,6.6786,1808.6,1808.3,3.2078]
[1745825922687,1.10569,1808.3,1808.2,1.10571]
[1745825922887,1.10571,1808.2,1808.1,4.31354]
[1745825923190,4.55251,1808.2,1808.1,3.2078]
[1745825923390,4.55251,1808.2,1808.1,4.31357]
[1745825923594,4.55251,1808.2,1808.1,3.2078]
[1745825924991,4.55251,1808.2,1808.1,4.31357]
[1745825925390,4.55251,1808.2,1808.1,3.2078]
[1745825925693,4.55251,1808.2,1808.1,4.31357]
[1745825925893,4.55251,1808.2,1808.1,3.2078]
[1745825931300,8.21251,1808.2,1808.1,3.2078]
[1745825933007,1.10577,1808.1,1808.0,2.70323]
[1745825933303,2.77197,1808.1,1808.0,5.91103]
[1745825933503,2.77197,1808.1,1808.0,5.91104]
[1745825934599,1.10584,1808.0,1807.9,0.7878]
[1745825934898,2.81894,1808.0,1807.9,0.7878]
[1745825935103,2.81894,1808.0,1807.9,4.5898]
[1745825935605,2.81894,1808.0,1807.9,6.2302]
[1745825935808,2.81894,1808.0,1807.9,7.3361]
[1745825936006,1.7131,1808.0,1807.9,7.3361]
[1745825937209,2.81894,1808.0,1807.9,7.3361]
[1745825937910,1.10581,1808.1,1808.0,1.10584]
[1745825938206,1.10564,1808.4,1808.3,1.10565]
[1745825938408,1.1056,1808.4,1808.3,1.1056]
[1745825938805,1.1056,1808.4,1808.3,2.8249]
[1745825939001,1.7372,1808.5,1808.3,3.6278]
[1745825939204,2.84279,1808.5,1808.4,2.82489]
[1745825939408,2.84279,1808.5,1808.4,1.7193]
[1745825939702,1.10559,1808.4,1808.3,5.71052]
[1745825940006,2.84279,1808.4,1808.3,4.6049]
[1745825941009,2.84279,1808.4,1808.3,5.71055]
[1745825941202,2.84279,1808.4,1808.2,7.0098]
[1745825941403,1.6217,1808.3,1808.2,8.11551]
[1745825941697,1.6217,1808.3,1808.2,9.72111]
[1745825942211,1.6217,1808.3,1808.2,5.91911]
[1745825942411,1.10558,1808.5,1808.4,1.10559]
[1745825942602,2.72728,1808.5,1808.4,1.10559]
[1745825943613,1.10559,1808.4,1808.3,3.55591]
[1745825943913,2.73209,1808.4,1808.3,3.55591]
[1745825944404,2.73209,1808.4,1808.3,1.10561]
[1745825949822,1.6265,1808.4,1808.3,1.10561]
[1745825950317,1.6265,1808.4,1808.3,2.74421]
[1745825951011,2.73209,1808.4,1808.3,2.74421]
[1745825952114,2.73209,1808.4,1808.3,1.10561]
[1745825952322,1.10565,1808.3,1808.2,4.31346]
[1745825952517,3.53955,1808.3,1808.2,4.31346]
[1745825952919,2.4339,1808.3,1808.2,4.31346]
[1745825953115,2.4339,1808.3,1808.2,9.70486]
[1745825953617,1.6437,1808.3,1808.2,9.70486]
[1745825953922,1.94585,1808.5,1808.4,1.10559]
[1745825954218,3.52795,1808.5,1808.4,1.10559]
[1745825954718,1.10559,1808.4,1808.3,1.1056]
[1745825954918,2.68769,1808.4,1808.3,1.1056]
[1745825955116,1.10565,1808.3,1808.2,3.2078]
[1745825955320,1.10582,1808.1,1808.0,4.31361]
[1745825955821,3.669,1808.2,1808.0,4.31361]
[1745825955822,6.37204,1808.2,1808.1,1.10577]
[1745825956013,4.77474,1808.2,1808.1,1.10577]
[1745825956213,4.77474,1808.2,1808.0,4.3136]
[1745825956214,1.10577,1808.1,1808.0,4.3136]
[1745825956817,3.669,1808.2,1808.0,3.2078]
[1745825957020,4.77474,1808.2,1808.1,1.10577]
[1745825958121,3.669,1808.2,1808.1,1.10577]
[1745825958422,4.77471,1808.2,1808.1,1.10577]
[1745825959219,1.10577,1808.1,1808.0,3.2078]
[1745825959426,1.10577,1808.1,1808.0,4.31364]
[1745825959726,1.95237,1808.1,1808.0,4.31364]
[1745825961023,1.95237,1808.1,1808.0,3.2078]
[1745825961524,1.95237,1808.1,1808.0,4.31364]
[1745825962522,1.95237,1808.1,1808.0,3.2078]
[1745825962726,1.10588,1808.0,1807.9,1.10589]
[1745825963023,1.97058,1808.0,1807.9,1.10589]
[1745825963225,1.97058,1808.0,1807.9,4.90789]
[1745825965028,1.97058,1808.0,1807.9,3.802]
[1745825966225,1.1059,1807.9,1807.8,46.84744]
[1745825966930,1.1059,1807.9,1807.8,40.8]
[1745825967122,4.7609,1807.9,1807.8,40.8]
[1745825967324,4.7609,1807.9,1807.6,5.10618]
[1745825967325,1.10602,1807.7,1807.6,5.10618]
[1745825967727,1.10602,1807.7,1807.6,45.90618]
[1745825968232,1.10601,1807.8,1807.6,44.8001]
[1745825968530,1.10601,1807.8,1807.7,1.10602]
[1745825968834,1.10602,1807.7,1807.6,47.62774]
[1745825969032,1.89402,1807.7,1807.6,47.62774]
[1745825969329,0.788,1807.7,1807.6,47.62774]
[1745825969530,1.89402,1807.7,1807.6,47.62774]
[1745825970219,1.89402,1807.7,1807.6,44.41998]
[1745825971233,1.89402,1807.7,1807.6,43.3139]
[1745825971429,1.89402,1807.7,1807.6,40.8]
[1745825972232,2.75382,1807.7,1807.6,40.8]
[1745825972729,4.8556,1807.7,1807.3,0.8555]
[1745825972921,1.10615,1807.5,1807.3,2.478]
[1745825973127,1.1062,1807.5,1807.4,40.8]
[1745825973420,2.7799,1807.5,1807.4,40.8]
[1745825973621,1.1062,1807.4,1807.3,3.58421]
[1745825973823,2.7799,1807.4,1807.3,2.478]
[1745825974023,2.7799,1807.4,1807.3,43.278]
[1745825974332,2.7799,1807.4,1807.3,47.08]
[1745825974533,2.7799,1807.4,1807.3,48.18626]
[1745825976332,1.1062,1807.4,1807.3,48.18626]
[1745825977941,2.78899,1807.5,1807.4,1.1062]
[1745825978133,2.78899,1807.5,1807.4,5.4091]
[1745825978435,4.76111,1807.6,1807.4,5.4091]
[1745825978737,4.76111,1807.6,1807.5,1.6071]
[1745825979135,6.44391,1807.6,1807.5,5.4091]
[1745825979739,6.44391,1807.6,1807.5,6.51524]
[1745825980045,3.655,1807.6,1807.5,7.35594]
[1745825981939,4.76108,1807.6,1807.5,7.35594]
[1745825982635,4.76108,1807.6,1807.5,6.51524]
[1745825983339,4.76108,1807.6,1807.5,3.802]
[1745825983532,5.57258,1807.6,1807.5,3.802]
[1745825985145,5.57258,1807.6,1807.3,41.6555]
[1745825985146,4.4665,1807.6,1807.3,41.6555]
[1745825985339,1.1062,1807.4,1807.3,40.8]
[1745825985842,2.7777,1807.4,1807.3,40.8]
[1745825991448,2.7777,1807.4,1806.8,0.7871]
[1745825991449,6.6715,1807.4,1806.8,0.7871]
[1745825991748,1.10651,1806.9,1806.8,3.63647]
[1745825991940,1.10651,1806.9,1806.8,44.43647]
[1745825992136,1.1065,1807.0,1806.9,1.10651]
[1745825992345,1.1065,1807.0,1806.9,1.687]
[1745825992538,2.8112,1807.0,1806.9,2.79351]
[1745825993252,2.8112,1807.0,1806.9,5.489]
[1745825993550,3.6095,1807.0,1806.9,5.489]
[1745825993850,1.7047,1807.0,1806.9,6.59551]
[1745825994743,1.7047,1807.0,1806.9,9.80331]
[1745825994941,2.81115,1807.0,1806.9,8.6968]
[1745825995853,1.10645,1807.0,1806.9,9.80328]
[1745825996254,1.10645,1807.0,1806.9,8.6968]
[1745825996454,1.10645,1807.0,1806.9,9.80331]
[1745825997756,1.6841,1807.1,1807.0,1.10645]
[1745825997962,4.7623,1807.3,1807.1,1.10634]
[1745825998151,4.7623,1807.3,1807.2,5.7782]
[1745825998353,5.5653,1807.3,1807.2,5.7782]
[1745825998561,7.1688,1807.3,1807.2,2.5704]
[1745825999557,7.1688,1807.3,1807.2,0.8505]
[1745826000065,7.1688,1807.3,1807.2,5.75883]
[1745826000066,3.656,1807.3,1807.2,5.75883]